bitfinex/quotes_ETHUSD_20240608
["timestamp","ask_amount","ask_price","bid_price","bid_amount"]
[1717844796160,0.93842506,3697.5,3697.3,0.008]
[1717844796377,0.93842506,3697.5,3697.2,0.008]
[1717844796775,0.93842506,3697.5,3697.3,0.22872276]
[1717844796990,0.93842506,3697.5,3697.3,0.23672276]
[1717844797287,0.93842506,3697.5,3697.3,0.008]
[1717844797590,0.93842506,3697.5,3697.2,0.008]
[1717844798086,0.93842506,3697.5,3697.3,0.22872276]
[1717844798589,0.93842506,3697.5,3697.3,0.008]
[1717844798789,0.93842506,3697.5,3697.2,0.008]
[1717844799306,0.93842506,3697.5,3697.3,0.22872276]
[1717844799454,0.93842506,3697.5,3697.3,0.23672276]
[1717844799657,0.93842506,3697.5,3697.3,0.008]
[1717844799959,0.93842506,3697.5,3697.2,0.008]
[1717844800351,0.93842506,3697.5,3697.3,0.22872276]
[1717844800590,0.93842506,3697.5,3697.3,0.008]
[1717844801092,0.93842506,3697.5,3696.9,2.70495]
[1717844801400,0.93842506,3697.5,3697.2,0.008]
[1717844801986,0.93842506,3697.5,3697.3,0.22872276]
[1717844802182,0.93842506,3697.5,3697.3,0.23672276]
[1717844802495,0.93842506,3697.5,3697.3,0.008]
[1717844802695,0.21842506,3697.5,3697.2,0.008]
[1717844803065,0.21842506,3697.5,3697.3,0.22872276]
[1717844803272,0.21842506,3697.5,3697.3,0.23672276]
[1717844803473,0.21842506,3697.5,3697.3,0.008]
[1717844803690,0.21842506,3697.5,3697.2,0.008]
[1717844804059,0.21842506,3697.5,3697.3,0.22872276]
[1717844804296,0.21842506,3697.5,3697.3,0.23672276]
[1717844804624,0.21842506,3697.5,3697.3,0.008]
[1717844804779,0.21842506,3697.5,3697.2,0.008]
[1717844805182,0.21842506,3697.5,3697.3,0.22867006]
[1717844805389,0.21842506,3697.5,3697.3,0.23667006]
[1717844805601,0.21842506,3697.5,3697.3,0.008]
[1717844805805,0.21842506,3697.5,3697.2,0.008]
[1717844806189,0.21842506,3697.5,3697.3,0.22867006]
[1717844806395,0.21842506,3697.5,3697.3,0.23667006]
[1717844806719,0.21842506,3697.5,3697.3,0.008]
[1717844806881,0.21842506,3697.5,3697.2,0.008]
[1717844807198,0.21842506,3697.5,3697.3,0.22867006]
[1717844807404,0.21842506,3697.5,3697.3,0.23667006]
[1717844807603,0.21842506,3697.5,3697.3,0.008]
[1717844807911,0.21842506,3697.5,3697.2,0.008]
[1717844808303,0.21842506,3697.5,3697.3,0.22867006]
[1717844808613,0.21842506,3697.5,3697.3,0.008]
[1717844808816,0.21842506,3697.5,3697.2,0.008]
[1717844809182,0.21842506,3697.5,3697.3,0.22867006]
[1717844809401,0.21842506,3697.5,3697.3,0.23667006]
[1717844809680,0.21842506,3697.5,3697.3,0.008]
[1717844809911,0.21842506,3697.5,3697.2,0.008]
[1717844810303,0.21842506,3697.5,3697.3,0.22867006]
[1717844810513,0.21842506,3697.5,3697.3,0.23667006]
[1717844810689,0.21842506,3697.5,3697.3,0.008]
[1717844810883,0.21842506,3697.5,3697.2,0.008]
[1717844811089,0.21842506,3697.5,3697.3,0.22867006]
[1717844811317,0.21842506,3697.5,3697.3,0.008]
[1717844811518,0.21842506,3697.5,3697.2,0.008]
[1717844811728,0.21842506,3697.5,3697.3,0.22867006]
[1717844811908,0.21842506,3697.5,3697.3,0.008]
[1717844812420,0.21842506,3697.5,3697.4,0.22867006]
[1717844812713,0.21842506,3697.5,3697.4,0.23667006]
[1717844837599,3.5846819,3697.8,3697.4,0.23667006]
[1717844837889,0.72,3697.8,3697.5,0.008]
[1717844838265,3.5846819,3698.0,3697.5,0.008]
[1717844838454,0.72,3697.8,3697.6,0.22856466]
[1717844840611,0.72,3698.0,3697.6,0.22856466]
[1717844840817,0.72,3698.0,3697.6,0.23656466]
[1717844846778,0.72,3697.8,3697.6,0.23656466]
[1717844846990,0.72,3697.8,3697.6,0.22856466]
[1717844850697,0.23959142,3697.9,3697.6,0.22856466]
[1717844850901,0.95959142,3697.9,3697.6,0.23656466]
[1717844864872,2.53390824,3697.8,3697.6,0.23656466]
[1717844865044,2.70445,3697.6,3697.5,0.008]
[1717844865245,5.17109,3697.2,3696.3,7.43]
[1717844865446,5.17109,3697.2,3696.0,2.4705]
[1717844865447,0.72,3696.4,3696.0,2.4705]
[1717844865840,0.72,3696.2,3696.0,2.4705]
[1717844866065,0.72,3696.1,3695.7,2.4705]
[1717844870301,0.72,3696.1,3695.6,7.43]
[1717844871157,0.72,3696.1,3695.5,5.17642]
[1717844871354,0.72,3696.1,3695.5,7.08691666]
[1717844871959,0.72,3695.9,3695.5,7.08691666]
[1717844872166,0.72,3695.9,3695.5,6.56927466]
[1717844872602,0.008,3696.5,3695.5,6.56927466]
[1717844872811,0.72,3696.1,3695.5,6.56927466]
[1717844873780,0.72,3696.1,3695.6,0.20642407]
[1717844878231,3.008,3696.6,3695.6,0.20642407]
[1717844878403,0.72,3696.1,3695.5,6.56927466]
[1717844881948,0.72,3695.9,3695.5,6.56927466]
[1717844882600,0.72,3695.9,3695.6,0.20642407]
[1717844882806,0.72,3695.9,3695.5,6.56927466]
[1717844883008,0.72,3695.9,3695.6,0.20642407]
[1717844883238,0.72,3695.9,3695.5,6.56927466]
[1717844883618,0.72,3695.9,3695.6,0.20642407]
[1717844883821,0.72,3695.9,3695.5,6.56927466]
[1717844884016,0.72,3695.9,3695.6,0.20642407]
[1717844884216,0.72,3695.9,3695.5,6.56927466]
[1717844895070,0.72,3695.9,3695.6,0.20753796]
[1717844895453,0.72,3695.9,3695.5,6.56927466]
[1717844895849,0.72,3695.9,3695.6,0.20761049]
[1717844896049,0.72,3695.9,3695.5,6.56927466]
[1717844896270,0.72,3695.9,3695.6,0.20761049]
[1717844896874,0.72,3695.9,3695.5,6.56927466]
[1717844897270,0.72,3695.9,3695.6,0.20761049]
[1717844897663,0.72,3695.9,3695.5,6.56927466]
[1717844897878,0.72,3695.9,3695.6,0.20761049]
[1717844898247,0.72,3695.9,3695.5,6.56927466]
[1717844898450,0.72,3695.9,3695.6,0.20761049]
[1717844898660,0.72,3695.9,3695.5,6.56927466]
[1717844898848,0.72,3695.9,3695.6,0.20761049]
[1717844899074,0.72,3695.9,3695.5,6.56927466]
[1717844899813,0.72,3695.9,3695.6,0.20761049]
[1717844900175,0.72,3695.9,3695.5,6.56927466]
[1717844900576,0.72,3695.9,3695.6,0.20761049]
[1717844900979,0.72,3695.9,3695.5,6.56927466]
[1717844901489,0.72,3695.9,3695.6,0.20761049]
[1717844902011,0.72,3695.9,3695.5,6.56927466]
[1717844902526,0.72,3695.9,3695.6,0.20761049]
[1717844902731,0.72,3695.9,3695.5,6.56927466]
[1717844903132,0.72,3695.9,3695.6,0.20761049]
[1717844903490,0.72,3695.9,3695.5,6.56927466]
[1717844903888,0.72,3695.9,3695.6,0.20761049]
[1717844904331,0.72,3695.9,3695.5,6.56927466]
[1717844904692,0.72,3695.9,3695.6,0.20761049]
[1717844905106,0.72,3695.9,3695.5,6.56927466]
[1717844905502,0.72,3695.9,3695.6,0.20755116]
[1717844906047,0.72,3695.9,3695.5,6.56927466]
[1717844906389,0.72,3695.9,3695.6,0.20755116]
[1717844906803,0.72,3695.9,3695.5,6.56927466]
[1717844907261,0.72,3695.9,3695.6,0.20755116]
[1717844907469,0.72,3695.9,3695.5,6.56927466]
[1717844907767,0.72,3695.9,3695.6,0.20755116]
[1717844908143,0.72,3695.9,3695.5,6.56927466]
[1717844908669,0.72,3695.9,3695.6,0.20755116]
[1717844908821,0.72,3695.9,3695.5,6.56927466]
[1717844909021,0.72,3695.9,3695.6,0.20755116]
[1717844909254,0.72,3695.9,3695.5,6.56927466]
[1717844909457,0.72,3695.9,3695.6,0.20755116]
[1717844909638,0.72,3695.9,3695.5,6.56927466]
[1717844909838,0.72,3695.9,3695.6,0.20755116]
[1717844910049,0.72,3695.9,3695.5,6.56927466]
[1717844910247,0.72,3695.9,3695.6,0.20755116]
[1717844910464,0.72,3695.9,3695.5,6.56927466]
[1717844910658,0.72,3695.9,3695.6,0.20755116]
[1717844910975,0.72,3695.9,3695.5,6.56927466]
[1717844911177,2.3094,3695.8,3695.1,5.07805]
[1717844911339,2.91234,3695.8,3695.6,0.20755116]
[1717844911666,0.72,3695.7,3695.1,4.09910466]
[1717844911873,0.72,3695.4,3695.1,4.09910466]
[1717844913673,0.72,3695.4,3695.1,2.70625]
[1717844913877,0.72,3695.2,3695.1,2.70625]
[1717844915574,2.3094,3695.3,3695.1,2.70625]
[1717844915820,3.0294,3695.3,3695.1,2.70625]
[1717844917915,0.72,3695.3,3695.1,2.70625]
[1717844922936,0.72,3695.3,3695.2,0.20129546]
[1717844925017,0.72,3695.3,3694.7,2.70656]
[1717844925226,3.0,3695.4,3695.2,0.20140726]
[1717844925516,1.25094,3695.3,3694.7,2.70656]
[1717844925718,0.72,3695.1,3694.7,2.70656]
[1717844928841,0.72,3694.8,3694.3,5.02806]
[1717844932995,3.0241,3695.1,3694.3,5.02806]
[1717844937922,3.0241,3695.1,3694.4,0.20200579]
[1717844945055,0.36091805,3695.0,3694.4,0.20200579]
[1717844948261,0.72,3694.7,3694.4,0.20200579]
[1717844948569,0.72,3694.7,3694.3,2.70686]
[1717844948784,0.72,3694.7,3694.5,0.20227553]
[1717844949102,0.36091805,3695.0,3694.3,2.70686]
[1717844949277,0.72,3694.8,3694.6,0.20227553]
[1717844949453,0.72,3694.8,3694.3,2.70686]
[1717844949653,0.72,3694.8,3694.4,0.20227553]
[1717844949892,0.72,3694.8,3694.3,2.70686]
[1717844950205,0.72,3694.8,3694.4,0.20227553]
[1717844950533,0.72,3694.8,3694.3,2.70686]
[1717844950733,1.04906018,3694.8,3694.5,0.20227553]
[1717844950986,1.04906018,3694.8,3694.3,2.70686]
[1717844951190,1.04906018,3694.8,3694.6,0.20227553]
[1717844951334,1.04906018,3694.8,3694.3,2.70686]
[1717844951534,1.04906018,3694.8,3694.7,0.20227553]
[1717844951784,1.04906018,3694.8,3694.3,2.70686]
[1717844951996,1.04906018,3694.8,3694.7,0.20227553]
[1717844952144,1.04906018,3694.8,3694.3,2.70686]
[1717844952338,1.04906018,3694.8,3694.7,0.20227553]
[1717844952642,1.04906018,3694.8,3694.3,2.70686]
[1717844952842,0.72,3694.8,3694.3,2.70686]
[1717844953074,0.72,3694.8,3694.4,0.20227553]
[1717844953238,0.72,3694.8,3694.3,2.70686]
[1717844953432,0.72,3694.8,3694.4,0.20227553]
[1717844953656,0.72,3694.8,3694.3,2.70686]
[1717844954202,0.72,3694.6,3694.4,0.20227553]
[1717844954500,0.72,3694.6,3693.9,2.71304992]
[1717844954637,0.72,3694.6,3694.5,0.2025782]
[1717844954839,0.72,3694.6,3693.9,2.71304992]
[1717844955143,0.72,3694.6,3694.0,0.2025782]
[1717844955339,0.72,3694.2,3694.0,0.2025782]
[1717844959596,0.72,3694.2,3693.5,2.70745]
[1717844960065,0.72,3694.2,3693.6,0.20294011]
[1717844960279,0.72,3693.8,3693.6,0.20294011]
[1717844960479,0.72,3693.8,3693.4,2.2569]
[1717844960779,0.72,3693.8,3693.5,0.20309808]
[1717844961499,0.72,3693.8,3693.2,2.3749]
[1717844961705,0.72,3693.8,3693.3,0.20309808]
[1717844963164,0.72,3693.6,3693.3,0.20309808]
[1717844963509,3.0,3693.8,3693.4,0.2032034]
[1717844963510,3.72,3693.8,3693.4,0.2032034]
[1717844963714,4.26085,3693.8,3693.1,2.70773]
[1717844963897,4.26085,3693.8,3693.5,0.2032034]
[1717844964106,4.26085,3693.8,3693.1,2.70773]
[1717844964273,4.26085,3693.8,3693.6,0.2032034]
[1717844964479,0.666935,3693.7,3693.1,2.70773]
[1717844964675,0.72,3693.6,3693.2,0.2032034]
[1717844965803,0.72,3693.4,3693.2,0.2032034]
[1717844965975,0.72,3693.4,3692.9,2.3749]
[1717844966174,0.72,3693.4,3693.3,0.20388793]
[1717844966713,0.06769206,3693.7,3692.9,2.3749]
[1717844966875,0.72,3693.5,3693.3,0.20388793]
[1717844967203,0.72,3693.5,3692.9,2.3749]
[1717844967393,0.72,3693.5,3693.4,0.20388793]
[1717844967597,0.72,3693.5,3692.7,5.08294]
[1717844967781,0.72,3693.5,3692.7,6.47579466]
[1717844967982,0.72,3693.5,3692.8,0.20388793]
[1717844968676,0.72,3693.3,3692.8,0.20388793]
[1717844968897,3.72,3693.3,3692.8,0.20388793]
[1717844971318,3.0,3693.3,3692.8,0.20388793]
[1717844971531,3.72,3693.5,3692.8,0.20388793]
[1717844974688,0.72,3693.3,3692.8,0.20388793]
[1717844979625,3.72,3693.5,3692.8,0.20388793]
[1717844982295,4.02574394,3693.5,3692.8,0.20388793]
[1717844986335,0.72,3693.3,3692.8,0.20388793]
[1717844994618,1.30535787,3693.3,3692.8,0.20388793]
[1717844994854,0.72,3693.3,3692.8,0.20388793]
[1717844997462,4.61110181,3693.5,3692.8,0.20388793]
[1717844998661,4.02574394,3693.5,3692.8,0.20388793]
[1717844998861,4.61111302,3693.5,3692.8,0.20388793]
[1717844999074,1.03875495,3693.4,3692.8,0.20388793]
[1717844999442,0.45338587,3693.4,3692.8,0.20388793]
[1717845000168,1.03875495,3693.4,3692.8,0.20388793]
[1717845001758,0.72,3693.3,3692.8,0.20388793]
[1717845001958,0.58536908,3693.4,3692.8,0.20388793]
[1717845002139,0.58536908,3693.4,3692.9,5.03138]
[1717845002340,3.58536908,3693.9,3693.3,5.03109]
[1717845002540,0.58536908,3694.2,3693.4,2.3235]
[1717845002831,3.0,3693.8,3693.5,0.20477025]
[1717845003031,0.58536908,3694.1,3693.5,0.20477025]
[1717845003226,0.58536908,3694.2,3693.5,0.20477025]
[1717845003467,0.82520586,3694.3,3693.6,2.3235]
[1717845003966,0.23983678,3694.3,3693.7,0.20432246]
[1717845004831,0.72,3694.2,3693.7,0.20432246]
[1717845006272,0.23983678,3694.3,3693.7,0.20432246]
[1717845006577,0.23983678,3694.3,3693.7,0.17632246]
[1717845006759,0.008,3694.1,3693.7,0.17632246]
[1717845007270,0.008,3694.1,3693.7,1.56917712]
[1717845007433,0.008,3694.1,3693.8,2.3235]
[1717845007632,0.008,3694.1,3693.8,2.52688913]
[1717845009339,0.008,3694.1,3694.0,2.3235]
[1717845009674,0.008,3694.2,3694.0,2.3235]
[1717845009836,0.008,3694.2,3694.0,2.52688913]
[1717845013249,0.008,3694.2,3694.0,0.20338913]
[1717845013547,0.008,3694.2,3693.7,2.70724]
[1717845013752,0.008,3694.1,3693.7,2.70724]
[1717845013934,0.008,3694.1,3693.8,0.20338913]
[1717845014370,0.008,3694.1,3693.7,2.70724]
[1717845014871,0.008,3694.1,3693.8,0.20314553]
[1717845015476,0.008,3694.1,3693.9,0.20314553]
[1717845015770,0.008,3694.2,3693.9,0.20314553]
[1717845016070,0.51464922,3694.2,3694.0,0.20314553]
[1717845016275,0.51464922,3694.2,3693.7,2.70724]
[1717845016495,0.008,3694.1,3693.7,2.70724]
[1717845016776,0.008,3694.1,3693.8,0.20314553]
[1717845017159,0.008,3694.1,3693.7,2.70724]
[1717845017681,0.008,3694.1,3693.8,0.20314553]
[1717845018184,0.008,3694.1,3693.9,0.20314553]
[1717845018366,0.008,3694.2,3693.7,2.70724]
[1717845018684,0.008,3694.1,3693.9,2.3235]
[1717845018881,0.008,3694.2,3693.9,2.3235]
[1717845019265,0.008,3694.2,3694.0,0.20314553]
[1717845022287,0.46330607,3694.2,3694.0,0.20314553]
[1717845022690,3.53300607,3694.2,3694.0,0.20314553]
[1717845022988,3.0,3694.1,3693.4,2.2598]
[1717845023293,0.008,3693.9,3693.4,2.2598]
[1717845027917,0.008,3693.9,3693.5,0.20332986]
[1717845028207,0.008,3694.0,3693.5,0.20332986]
[1717845031831,0.008,3694.0,3693.5,0.25754537]
[1717845034333,0.74381291,3694.0,3693.5,0.25754537]
[1717845034642,0.008,3693.9,3693.3,2.70759]
[1717845034848,0.008,3693.9,3693.6,0.25745319]
[1717845035138,0.74381291,3694.0,3693.3,2.70759]
[1717845035346,0.74381291,3694.0,3693.7,0.25745319]
[1717845035347,0.008,3693.9,3693.7,0.25745319]
[1717845035624,0.78541052,3693.9,3693.8,0.25745319]
[1717845035830,0.78541052,3693.9,3693.3,2.70759]
[1717845036045,0.008,3693.8,3693.3,2.70759]
[1717845036206,0.008,3693.9,3693.3,2.70759]
[1717845040413,0.728,3693.9,3692.8,5.87572]
[1717845040618,0.008,3693.7,3692.8,5.87572]
[1717845040818,0.008,3693.7,3692.8,7.26857466]
[1717845042530,0.008,3693.7,3693.1,2.70774]
[1717845042709,0.008,3693.8,3693.1,2.70774]
[1717845042914,0.008,3693.8,3693.2,0.25751246]
[1717845044807,0.008,3693.8,3693.2,2.70531246]
[1717845045706,0.008,3693.8,3693.3,6.54819466]
[1717845046032,0.008,3693.9,3693.3,5.41289197]
[1717845046394,0.008,3693.9,3693.3,5.15534]
[1717845046598,0.008,3693.9,3693.4,0.25755197]
[1717845046835,0.008,3694.0,3693.4,0.25755197]
[1717845050730,0.008,3693.9,3693.4,0.25755197]
[1717845051338,0.008,3694.0,3693.4,0.25755197]
[1717845051749,0.008,3693.9,3693.4,0.25755197]
[1717845061853,0.008,3693.9,3693.6,2.4962]
[1717845062030,0.008,3694.0,3693.8,0.72]
[1717845062367,0.23983678,3694.3,3694.0,2.4962]
[1717845062368,0.008,3694.1,3694.0,2.4962]
[1717845062608,0.008,3694.2,3694.1,2.4962]
[1717845062727,0.008,3694.2,3694.1,4.60905466]
[1717845062929,0.008,3694.2,3694.1,4.86643543]
[1717845063128,0.008,3694.2,3694.1,5.37420752]
[1717845063885,0.008,3694.2,3694.1,4.65420752]
[1717845064044,0.008,3694.2,3694.1,8.08121752]
[1717845072380,0.21983678,3694.3,3694.1,8.08121752]
[1717845072551,0.21983678,3694.3,3694.2,1.7010318]
[1717845072955,0.28257887,3695.9,3694.3,2.4962]
[1717845073279,0.28257887,3695.9,3694.9,0.72]
[1717845073842,0.28257887,3695.9,3695.0,0.25575508]
[1717845074066,0.28257887,3695.9,3695.1,2.70627]
[1717845074239,0.89963989,3695.8,3695.1,2.70627]
[1717845074442,0.89963989,3695.8,3695.2,0.25575508]
[1717845074843,1.61963989,3695.8,3695.2,0.25575508]
[1717845079569,0.89963989,3695.8,3695.2,0.25575508]
[1717845079780,1.61963989,3695.8,3695.2,0.25575508]
[1717845079987,0.5487255,3695.7,3695.2,0.25575508]
[1717845091117,0.89963989,3695.8,3695.3,2.70613]
[1717845091274,3.58501664,3696.0,3695.3,2.96155613]
[1717845091474,3.0,3696.0,3695.3,2.96155613]
[1717845092498,3.58501664,3696.0,3695.3,2.96155613]
[1717845093221,3.0,3696.0,3695.3,2.96155613]
[1717845093520,5.87321664,3696.1,3695.3,2.96155613]
[1717845093721,3.0,3695.9,3695.3,2.96155613]
[1717845093923,0.58501664,3696.0,3695.3,2.96155613]
[1717845094126,3.0,3696.0,3695.3,2.96155613]
[1717845095086,2.4955,3696.1,3695.5,2.70598]
[1717845095599,2.4955,3696.1,3695.6,0.25542613]
[1717845095802,3.08051664,3696.1,3695.6,0.25542613]
[1717845096005,3.0,3696.0,3695.6,0.25542613]
[1717845096704,5.4955,3696.1,3695.6,0.25542613]
[1717845097632,6.08051664,3696.1,3695.6,0.25542613]
[1717845097819,0.58501664,3696.0,3695.6,0.25542613]
[1717845097994,3.58501664,3696.0,3695.6,0.25542613]
[1717845098503,3.0,3696.0,3695.6,0.25542613]
[1717845098732,5.4955,3696.1,3695.6,0.25542613]
[1717845099544,6.08051664,3696.1,3695.6,0.25542613]
[1717845099836,0.58501664,3696.0,3695.6,0.25542613]
[1717845100133,3.58501664,3696.0,3695.6,0.25542613]
[1717845101910,0.58501664,3695.9,3695.6,0.25542613]
[1717845102111,0.72,3695.7,3695.6,0.25542613]
[1717845102315,4.30501664,3695.7,3695.1,2.70627]
[1717845102513,4.30501664,3695.7,3695.6,0.25514985]
[1717845102773,3.58501664,3695.7,3695.1,2.70627]
[1717845103040,3.58501664,3695.7,3695.6,0.25514985]
[1717845103506,3.58501664,3695.7,3695.1,2.70627]
[1717845103695,3.58501664,3695.7,3695.6,0.25514985]
[1717845103904,3.58501664,3695.7,3695.1,2.70627]
[1717845104227,3.58501664,3695.7,3695.6,0.25514985]
[1717845104413,4.01233314,3695.7,3695.1,2.70627]
[1717845104612,3.58501664,3695.7,3695.6,0.25514985]
[1717845104824,3.58501664,3695.7,3695.1,2.70627]
[1717845105015,3.58501664,3695.7,3695.6,0.25514985]
[1717845105217,3.58503755,3695.7,3695.1,2.70627]
[1717845105439,3.58503755,3695.7,3695.6,0.25514985]
[1717845105655,4.31930647,3695.7,3695.1,2.70627]
[1717845105864,3.0,3695.7,3695.6,0.25514985]
[1717845106010,3.58503777,3695.7,3695.1,2.70627]
[1717845106213,3.58503777,3695.7,3695.2,0.25514985]
[1717845106555,0.58503777,3695.6,3695.2,0.25514985]
[1717845106734,3.58503777,3695.7,3695.2,0.25514985]
[1717845107520,0.58503777,3695.6,3695.2,0.25514985]
[1717845107775,0.58503777,3695.6,3694.9,7.43]
[1717845108057,0.58503777,3695.5,3694.9,7.43]
[1717845108261,0.58503777,3695.6,3695.0,0.25526168]
[1717845108568,1.59530344,3695.6,3695.0,0.25526168]
[1717845108925,1.59530344,3695.6,3694.8,0.008]
[1717845109256,0.58503777,3695.6,3694.7,5.78916]
[1717845109461,0.58503777,3695.6,3694.8,0.25557744]
[1717845110131,3.58503777,3695.7,3694.8,0.25557744]
[1717845110533,3.58503777,3695.7,3694.9,2.70642]
[1717845110759,0.58503777,3695.6,3694.9,2.70642]
[1717845110948,0.58503777,3695.6,3695.0,0.25557744]
[1717845111263,3.58503777,3695.7,3695.0,0.25557744]
[1717845113169,3.0,3695.7,3695.0,0.25557744]
[1717845114176,3.58503777,3695.7,3695.0,0.25557744]
[1717845114535,3.0,3695.7,3695.0,0.25557744]
[1717845115650,3.0,3695.7,3695.1,2.3276]
[1717845115843,3.58503777,3695.8,3695.2,0.25555112]
[1717845116172,4.52725655,3695.8,3695.2,0.25555112]
[1717845124760,5.24725655,3695.8,3695.2,0.25555112]
[1717845124959,0.58503777,3695.7,3695.2,0.25555112]
[1717845125380,2.4871,3695.6,3695.2,0.25555112]
[1717845125560,5.4871,3695.6,3695.2,0.25555112]
[1717845125760,6.53111065,3695.6,3694.9,2.70642]
[1717845125965,0.58503777,3695.5,3695.3,0.24681049]
[1717845126188,3.58503777,3695.5,3694.9,2.70642]
[1717845126378,3.65269304,3695.5,3695.4,0.24681049]
[1717845126576,5.09107341,3695.5,3694.9,2.71442]
[1717845126781,0.58503777,3695.4,3694.9,2.70642]
[1717845127559,5.02341814,3695.5,3694.9,2.70642]
[1717845128295,0.58503777,3695.4,3694.9,2.70642]
[1717845129064,5.02341814,3695.5,3694.9,2.70642]
[1717845129264,0.58503777,3695.4,3694.9,2.70642]
[1717845130570,4.30341814,3695.5,3694.9,2.70642]
[1717845130987,0.58503777,3695.4,3694.9,2.70642]
[1717845131504,3.71838037,3695.5,3694.9,2.70642]
[1717845131698,0.58506073,3695.4,3694.9,2.70642]
[1717845132904,0.58506073,3695.4,3695.0,0.23869731]
[1717845134179,0.82828381,3695.3,3695.0,0.23869731]
[1717845134507,0.24322308,3695.3,3695.0,0.23869731]
[1717845136276,0.82828381,3695.3,3695.0,0.23869731]
[1717845136491,0.24322308,3695.3,3695.0,0.23869731]
[1717845145482,0.82829033,3695.3,3695.0,0.23869731]
[1717845145684,0.24322308,3695.3,3695.0,0.23869731]
[1717845145884,0.82829033,3695.3,3695.0,0.23869731]
[1717845146333,0.24322308,3695.3,3695.0,0.23869731]
[1717845147089,0.82829033,3695.3,3695.0,0.23869731]
[1717845147289,0.24322308,3695.3,3695.0,0.23869731]
[1717845147491,0.82829033,3695.3,3695.0,0.23869731]
[1717845147712,0.24322308,3695.3,3695.0,0.23869731]
[1717845148037,0.82829033,3695.3,3695.0,0.23869731]
[1717845148183,0.24322308,3695.3,3695.0,0.23869731]
[1717845148483,0.82829033,3695.3,3695.0,0.23869731]
[1717845148725,0.24322308,3695.3,3695.0,0.23869731]
[1717845148921,0.82829033,3695.3,3695.0,0.23869731]
[1717845149219,0.24322308,3695.3,3695.0,0.23869731]
[1717845149608,0.82829033,3695.3,3695.0,0.23869731]
[1717845149812,0.24322308,3695.3,3695.0,0.23869731]
[1717845150027,0.82829033,3695.3,3695.0,0.23869731]
[1717845150322,0.24322308,3695.3,3695.0,0.23869731]
[1717845150527,0.82829033,3695.3,3695.0,0.23869731]
[1717845150686,0.24322308,3695.3,3695.0,0.23869731]
[1717845150888,0.82829033,3695.3,3695.0,0.23869731]
[1717845151088,0.24322308,3695.3,3695.0,0.23869731]
[1717845151289,0.82829033,3695.3,3695.0,0.23869731]
[1717845151629,0.24322308,3695.3,3695.0,0.23869731]
[1717845151801,0.82829033,3695.3,3695.0,0.23869731]
[1717845152000,0.24322308,3695.3,3695.0,0.23869731]
[1717845152209,0.82829033,3695.3,3695.0,0.23869731]
[1717845152400,0.24322308,3695.3,3695.0,0.23869731]
[1717845152605,0.82829033,3695.3,3695.0,0.23869731]
[1717845152801,0.24322308,3695.3,3695.0,0.23869731]
[1717845153042,0.82829033,3695.3,3695.0,0.23869731]
[1717845153224,0.24322308,3695.3,3695.0,0.23869731]
[1717845153553,0.82829033,3695.3,3695.0,0.23869731]
[1717845153709,0.24322308,3695.3,3695.0,0.23869731]
[1717845153909,0.82829033,3695.3,3695.0,0.23869731]
[1717845154112,0.58506725,3695.2,3695.0,0.23869731]
[1717845155011,0.24322308,3695.3,3695.0,0.23869731]
[1717845155210,0.58506725,3695.2,3695.0,0.23869731]
[1717845160357,0.58505587,3695.2,3695.0,0.23869731]
[1717845167865,0.58505705,3695.2,3695.0,0.23869731]
[1717845172441,0.58505705,3695.2,3695.1,2.70628]
[1717845172641,0.58505705,3695.2,3695.1,2.94509304]
[1717845173188,0.24322308,3695.3,3695.1,2.94509304]
[1717845174735,0.82828013,3695.3,3695.1,2.94509304]
[1717845175074,0.24322308,3695.3,3695.1,2.94509304]
[1717845176038,0.82828013,3695.3,3695.1,2.94509304]
[1717845176243,0.24322308,3695.3,3695.1,2.94509304]
[1717845179645,0.82828013,3695.3,3695.1,2.94509304]
[1717845179861,0.24322308,3695.3,3695.1,2.94509304]
[1717845181498,0.24322308,3695.3,3695.1,3.48207234]
[1717845181641,0.24322308,3695.3,3695.2,2.3108]
[1717845181855,0.24322308,3695.3,3695.2,2.54965877]
[1717845197814,0.24322308,3695.3,3695.2,0.23885877]
[1717845222402,0.24322308,3695.3,3694.7,5.02536]
[1717845222699,0.24322308,3695.3,3694.8,1.39285466]
[1717845222906,0.24322308,3695.3,3694.8,1.62376552]
[1717845227445,0.82827015,3695.3,3694.8,0.23091086]
[1717845227598,0.24322308,3695.3,3694.7,2.70656]
[1717845227798,3.20067015,3695.3,3694.8,0.23108671]
[1717845227999,3.0,3695.2,3694.7,2.70656]
[1717845228247,3.0,3695.2,3694.8,0.23108671]
[1717845228531,3.0,3695.2,3694.7,2.70656]
[1717845229044,3.0,3695.2,3694.8,0.23108671]
[1717845229216,3.0,3695.2,3694.7,2.70656]
[1717845229531,3.0,3695.2,3694.8,0.23108671]
[1717845229838,3.0,3695.2,3694.7,2.70656]
[1717845230044,3.0,3695.2,3694.8,0.23108671]
[1717845230239,3.0,3695.2,3694.7,2.70656]
[1717845230444,3.0,3695.2,3694.8,0.23108671]
[1717845230649,3.0,3695.2,3694.7,2.70656]
[1717845230805,3.0,3695.2,3694.8,0.2311779]
[1717845231002,3.0,3695.2,3694.7,2.70656]
[1717845231197,3.0,3695.2,3694.8,0.2311779]
[1717845231198,3.58504707,3695.2,3694.8,0.2311779]
[1717845231543,3.58504707,3695.2,3694.7,2.70656]
[1717845231743,3.58504707,3695.2,3694.9,0.2311779]
[1717845231971,3.0,3695.2,3694.7,2.70656]
[1717845232153,3.0,3695.2,3695.0,0.2311779]
[1717845232320,3.0,3695.2,3694.7,2.70656]
[1717845232804,3.0,3695.2,3694.8,0.2311779]
[1717845233146,3.0,3695.2,3694.7,2.70656]
[1717845233358,3.0,3695.2,3694.9,0.2311779]
[1717845233521,3.0,3695.2,3694.7,2.70656]
[1717845233720,3.0,3695.2,3695.0,0.2311779]
[1717845234035,3.58504707,3695.2,3695.1,0.2311779]
[1717845234220,0.24322308,3695.3,3694.7,2.71456]
[1717845234421,0.24322308,3695.3,3694.8,0.2311779]